[Event "Titled Tuesday Blitz April 11 Late 2023"]
[White "Garcia Cuenca, Victor"]
[Black "Levitskiy, Andrey"]
[WhiteFideId "2250829"]
[BlackFideId "14132885"]
[WhiteElo "2329"]
[BlackElo "2341"]
[Result "1/2-1/2"]
[Round "01"]
[TimeControl "180+2"]
[Date "2023.04.11"]
[WhiteClock "0:00:00"]
[BlackClock "0:00:00"]

1. d4 {[%clk 0:00:01]}  Nf6 {[%clk 0:00:01]} 2. Nf3 {[%clk 0:00:01]}  e6 {[%clk 0:00:01]} 3. e3 {[%clk 0:00:01]}  c5 {[%clk 0:00:01]} 4. c4 {[%clk 0:00:01]}  cxd4 {[%clk 0:00:01]} 5. Nxd4 {[%clk 0:00:01]}  a6 {[%clk 0:00:01]} 6. Nc3 {[%clk 0:00:01]}  b6 {[%clk 0:00:01]} 7. Be2 {[%clk 0:00:01]}  Bb7 {[%clk 0:00:01]} 8. O-O {[%clk 0:00:01]}  Be7 {[%clk 0:00:01]} 9. b3 {[%clk 0:00:01]}  O-O {[%clk 0:00:01]} 10. Bb2 {[%clk 0:00:01]}  d6 {[%clk 0:00:01]} 11. Rc1 {[%clk 0:00:01]}  Nbd7 {[%clk 0:00:01]} 12. f3 {[%clk 0:00:01]}  Rc8 {[%clk 0:00:01]} 13. e4 {[%clk 0:00:01]}  Re8 {[%clk 0:00:01]} 14. Qd2 {[%clk 0:00:01]}  Qc7 {[%clk 0:00:01]} 15. Kh1 {[%clk 0:00:01]}  Qb8 {[%clk 0:00:01]} 16. Rfd1 {[%clk 0:00:01]}  Bd8 {[%clk 0:00:01]} 17. Rc2 {[%clk 0:00:01]}  Bc7 {[%clk 0:00:01]} 18. g3 {[%clk 0:00:01]}  Ne5 {[%clk 0:00:01]} 19. Rdc1 {[%clk 0:00:01]}  Qa8 {[%clk 0:00:01]} 20. Kg1 {[%clk 0:00:01]}  d5 {[%clk 0:00:01]} 21. cxd5 {[%clk 0:00:01]}  exd5 {[%clk 0:00:01]} 22. Nxd5 {[%clk 0:00:00]}  Nxd5 {[%clk 0:00:01]} 23. exd5 {[%clk 0:00:00]}  Bd6 {[%clk 0:00:01]} 24. Nf5 {[%clk 0:00:00]}  Rxc2 {[%clk 0:00:01]} 25. Rxc2 {[%clk 0:00:00]}  Bc5+ {[%clk 0:00:01]} 26. Bd4 {[%clk 0:00:00]}  Bxd5 {[%clk 0:00:01]} 27. Bxc5 {[%clk 0:00:00]}  bxc5 {[%clk 0:00:01]} 28. Rxc5 {[%clk 0:00:00]}  Nxf3+ {[%clk 0:00:00]} 29. Bxf3 {[%clk 0:00:00]}  Bxf3 {[%clk 0:00:01]} 30. Qc3 {[%clk 0:00:00]}  f6 {[%clk 0:00:00]} 31. Rc8 {[%clk 0:00:00]}  Rxc8 {[%clk 0:00:00]} 32. Qxc8+ {[%clk 0:00:00]}  Qxc8 {[%clk 0:00:00]} 33. Ne7+ {[%clk 0:00:00]}  Kf7 {[%clk 0:00:00]} 34. Nxc8 {[%clk 0:00:00]}  Ke6 {[%clk 0:00:00]} 35. Nb6 {[%clk 0:00:00]}  g5 {[%clk 0:00:00]} 36. Kf2 {[%clk 0:00:00]}  Bb7 {[%clk 0:00:00]} 37. Ke3 {[%clk 0:00:00]}  f5 {[%clk 0:00:00]} 38. Na4 {[%clk 0:00:00]}  Ke5 {[%clk 0:00:00]} 39. Nc5 {[%clk 0:00:00]}  f4+ {[%clk 0:00:00]} 40. gxf4+ {[%clk 0:00:00]}  gxf4+ {[%clk 0:00:00]} 41. Kf2 {[%clk 0:00:00]}  Bc8 {[%clk 0:00:00]} 42. b4 {[%clk 0:00:00]}  Kd4 {[%clk 0:00:00]} 43. Na4 {[%clk 0:00:00]}  Be6 {[%clk 0:00:00]} 44. Nc5 {[%clk 0:00:00]}  Bxa2 {[%clk 0:00:00]} 45. Nxa6 {[%clk 0:00:00]}  Bd5 {[%clk 0:00:00]} 46. Nc5 {[%clk 0:00:00]}  Kc4 {[%clk 0:00:00]} 47. Nd7 {[%clk 0:00:00]}  Kxb4 {[%clk 0:00:00]} 48. Nf6 {[%clk 0:00:00]}  Kc4 {[%clk 0:00:00]} 49. Nxh7 {[%clk 0:00:00]}  Kd4 {[%clk 0:00:00]} 50. Nf6 {[%clk 0:00:00]}  Bc6 {[%clk 0:00:00]} 51. Nh5 {[%clk 0:00:00]}  Ke4 {[%clk 0:00:00]} 52. Nxf4 {[%clk 0:00:00]}  Kxf4 {[%clk 0:00:00]} 53. h4 {[%clk 0:00:00]}  Kg4 {[%clk 0:00:00]} 54. h5 {[%clk 0:00:00]}  Kxh5 {[%clk 0:00:00]} 1/2-1/2


[Site "https://www.chess.com"]

[Event "Titled Tuesday Blitz April 11 Late 2023"]
[White "Zeynalli, Rashad"]
[Black "Chos, Alexey"]
[WhiteFideId "13403320"]
[BlackFideId "14117762"]
[WhiteElo "2125"]
[BlackElo "2234"]
[Result "0-1"]
[Round "01"]
[TimeControl "180+2"]
[Date "2023.04.11"]
[WhiteClock "0:00:29"]
[BlackClock "0:00:09"]

1. d4 {[%clk 0:03:00]}  Nf6 {[%clk 0:02:58]} 2. Bf4 {[%clk 0:03:00]}  g6 {[%clk 0:02:58]} 3. e3 {[%clk 0:03:00]}  Bg7 {[%clk 0:02:57]} 4. Nf3 {[%clk 0:03:01]}  O-O {[%clk 0:02:53]} 5. Be2 {[%clk 0:03:01]}  b6 {[%clk 0:02:52]} 6. O-O {[%clk 0:03:01]}  Bb7 {[%clk 0:02:52]} 7. a4 {[%clk 0:03:01]}  a6 {[%clk 0:02:52]} 8. Nc3 {[%clk 0:03:00]}  d6 {[%clk 0:02:51]} 9. h3 {[%clk 0:02:59]}  Nbd7 {[%clk 0:02:52]} 10. Qd3 {[%clk 0:02:58]}  Re8 {[%clk 0:02:51]} 11. Rad1 {[%clk 0:02:59]}  Qc8 {[%clk 0:02:43]} 12. d5 {[%clk 0:02:34]}  e5 {[%clk 0:02:38]} 13. dxe6 {[%clk 0:02:30]}  fxe6 {[%clk 0:02:38]} 14. Qc4 {[%clk 0:02:16]}  Nc5 {[%clk 0:02:28]} 15. Bg5 {[%clk 0:02:03]}  d5 {[%clk 0:02:26]} 16. Qh4 {[%clk 0:02:00]}  Nfe4 {[%clk 0:02:20]} 17. Nxe4 {[%clk 0:01:56]}  Nxe4 {[%clk 0:02:21]} 18. c3 {[%clk 0:01:48]}  Bc6 {[%clk 0:02:16]} 19. Bh6 {[%clk 0:01:43]}  Bf6 {[%clk 0:01:48]} 20. Qg4 {[%clk 0:01:34]}  Bxa4 {[%clk 0:01:42]} 21. Ra1 {[%clk 0:01:33]}  Bd7 {[%clk 0:01:40]} 22. Ng5 {[%clk 0:01:15]}  Nxg5 {[%clk 0:01:18]} 23. Bxg5 {[%clk 0:01:16]}  Bg7 {[%clk 0:01:16]} 24. Rfd1 {[%clk 0:01:11]}  e5 {[%clk 0:01:12]} 25. Qb4 {[%clk 0:01:05]}  Be6 {[%clk 0:01:07]} 26. Bf3 {[%clk 0:01:00]}  e4 {[%clk 0:01:05]} 27. Be2 {[%clk 0:00:57]}  Qb7 {[%clk 0:01:03]} 28. Bf4 {[%clk 0:00:41]}  c5 {[%clk 0:01:02]} 29. Qa4 {[%clk 0:00:40]}  b5 {[%clk 0:00:56]} 30. Qa5 {[%clk 0:00:40]}  Bf6 {[%clk 0:00:53]} 31. Rd2 {[%clk 0:00:39]}  Bd8 {[%clk 0:00:47]} 32. Qa3 {[%clk 0:00:37]}  Be7 {[%clk 0:00:46]} 33. Qa5 {[%clk 0:00:37]}  Red8 {[%clk 0:00:42]} 34. Rad1 {[%clk 0:00:34]}  Rd7 {[%clk 0:00:41]} 35. Ra1 {[%clk 0:00:32]}  Bd8 {[%clk 0:00:38]} 36. Qa3 {[%clk 0:00:32]}  Be7 {[%clk 0:00:34]} 37. Qa5 {[%clk 0:00:31]}  Rdd8 {[%clk 0:00:29]} 38. Bc7 {[%clk 0:00:29]}  Rf8 {[%clk 0:00:27]} 39. Bg3 {[%clk 0:00:26]}  Bd8 {[%clk 0:00:24]} 40. Qa3 {[%clk 0:00:26]}  Bb6 {[%clk 0:00:24]} 41. Bf4 {[%clk 0:00:22]}  Qe7 {[%clk 0:00:19]} 42. Rad1 {[%clk 0:00:17]}  Qf6 {[%clk 0:00:17]} 43. Bf1 {[%clk 0:00:14]}  d4 {[%clk 0:00:16]} 44. Bd6 {[%clk 0:00:13]}  d3 {[%clk 0:00:08]} 45. Bxc5 {[%clk 0:00:12]}  Bxc5 {[%clk 0:00:05]} 46. Qxc5 {[%clk 0:00:13]}  Rad8 {[%clk 0:00:06]} 47. Qb6 {[%clk 0:00:12]}  Bf5 {[%clk 0:00:06]} 48. Qa5 {[%clk 0:00:11]}  Qd6 {[%clk 0:00:05]} 49. Qa2+ {[%clk 0:00:11]}  Kg7 {[%clk 0:00:05]} 50. Qb3 {[%clk 0:00:11]}  Be6 {[%clk 0:00:05]} 51. Qa3 {[%clk 0:00:10]}  Qxa3 {[%clk 0:00:04]} 52. bxa3 {[%clk 0:00:11]}  Rc8 {[%clk 0:00:03]} 53. Rc1 {[%clk 0:00:11]}  Bc4 {[%clk 0:00:03]} 54. f3 {[%clk 0:00:11]}  exf3 {[%clk 0:00:03]} 55. gxf3 {[%clk 0:00:12]}  Rxf3 {[%clk 0:00:04]} 56. Bxd3 {[%clk 0:00:12]}  Rd8 {[%clk 0:00:04]} 57. Rcd1 {[%clk 0:00:12]}  Rxe3 {[%clk 0:00:04]} 58. Bxc4 {[%clk 0:00:12]}  Rxd2 {[%clk 0:00:04]} 59. Rxd2 {[%clk 0:00:13]}  bxc4 {[%clk 0:00:05]} 60. Rd6 {[%clk 0:00:12]}  Rxc3 {[%clk 0:00:05]} 61. Rxa6 {[%clk 0:00:13]}  Rxh3 {[%clk 0:00:04]} 62. Kg2 {[%clk 0:00:13]}  Rb3 {[%clk 0:00:04]} 63. Kf2 {[%clk 0:00:13]}  c3 {[%clk 0:00:04]} 64. Ke2 {[%clk 0:00:14]}  c2 {[%clk 0:00:03]} 65. Kd2 {[%clk 0:00:15]}  Rc3 {[%clk 0:00:03]} 66. Kc1 {[%clk 0:00:15]}  h5 {[%clk 0:00:03]} 67. Ra7+ {[%clk 0:00:16]}  Kh6 {[%clk 0:00:03]} 68. Ra6 {[%clk 0:00:17]}  h4 {[%clk 0:00:04]} 69. Ra8 {[%clk 0:00:18]}  Kg5 {[%clk 0:00:03]} 70. Ra5+ {[%clk 0:00:17]}  Kg4 {[%clk 0:00:04]} 71. Ra4+ {[%clk 0:00:18]}  Kg3 {[%clk 0:00:04]} 72. Ra6 {[%clk 0:00:18]}  g5 {[%clk 0:00:04]} 73. Rg6 {[%clk 0:00:19]}  g4 {[%clk 0:00:05]} 74. a4 {[%clk 0:00:19]}  h3 {[%clk 0:00:05]} 75. a5 {[%clk 0:00:20]}  h2 {[%clk 0:00:05]} 76. Rh6 {[%clk 0:00:20]}  Kg2 {[%clk 0:00:06]} 77. a6 {[%clk 0:00:21]}  h1=Q+ {[%clk 0:00:06]} 78. Rxh1 {[%clk 0:00:21]}  Kxh1 {[%clk 0:00:07]} 79. a7 {[%clk 0:00:22]}  Ra3 {[%clk 0:00:08]} 80. a8=Q+ {[%clk 0:00:23]}  Rxa8 {[%clk 0:00:08]} 81. Kxc2 {[%clk 0:00:24]}  g3 {[%clk 0:00:08]} 82. Kd3 {[%clk 0:00:25]}  g2 {[%clk 0:00:09]} 83. Ke4 {[%clk 0:00:26]}  g1=Q {[%clk 0:00:09]} 84. Kd5 {[%clk 0:00:27]}  Rd8+ {[%clk 0:00:09]} 85. Kc6 {[%clk 0:00:28]}  Qc1+ {[%clk 0:00:09]} 86. Kb7 {[%clk 0:00:29]} 0-1


[Site "https://www.chess.com"]

[Event "Titled Tuesday Blitz April 11 Late 2023"]
[White "Castaneda, Jhon David"]
[Black "Wu, Sibo"]
[WhiteFideId "4405048"]
[BlackFideId "8606048"]
[WhiteElo "2102"]
[BlackElo "2082"]
[Result "1-0"]
[Round "01"]
[TimeControl "180+2"]
[Date "2023.04.11"]
[WhiteClock "0:00:00"]
[BlackClock "0:00:00"]

1. d4 {[%clk 0:00:01]}  Nf6 {[%clk 0:00:01]} 2. Nf3 {[%clk 0:00:01]}  d5 {[%clk 0:00:01]} 3. c4 {[%clk 0:00:01]}  c6 {[%clk 0:00:01]} 4. Nc3 {[%clk 0:00:01]}  a6 {[%clk 0:00:01]} 5. c5 {[%clk 0:00:01]}  Nbd7 {[%clk 0:00:01]} 6. Bg5 {[%clk 0:00:01]}  g6 {[%clk 0:00:01]} 7. e3 {[%clk 0:00:01]}  Bg7 {[%clk 0:00:01]} 8. Be2 {[%clk 0:00:01]}  O-O {[%clk 0:00:01]} 9. Nd2 {[%clk 0:00:01]}  e5 {[%clk 0:00:01]} 10. O-O {[%clk 0:00:01]}  e4 {[%clk 0:00:01]} 11. b4 {[%clk 0:00:01]}  h6 {[%clk 0:00:01]} 12. Bh4 {[%clk 0:00:01]}  g5 {[%clk 0:00:01]} 13. Bg3 {[%clk 0:00:01]}  Nh7 {[%clk 0:00:01]} 14. f3 {[%clk 0:00:01]}  f5 {[%clk 0:00:01]} 15. fxe4 {[%clk 0:00:01]}  fxe4 {[%clk 0:00:01]} 16. Na4 {[%clk 0:00:01]}  Nhf6 {[%clk 0:00:00]} 17. Rb1 {[%clk 0:00:01]}  Qe8 {[%clk 0:00:00]} 18. Bd6 {[%clk 0:00:01]}  Rf7 {[%clk 0:00:00]} 19. Qc2 {[%clk 0:00:01]}  Qe6 {[%clk 0:00:00]} 20. Qd1 {[%clk 0:00:01]}  b5 {[%clk 0:00:00]} 21. Nc3 {[%clk 0:00:01]}  Nf8 {[%clk 0:00:00]} 22. a4 {[%clk 0:00:01]}  Ng6 {[%clk 0:00:00]} 23. Nb3 {[%clk 0:00:01]}  g4 {[%clk 0:00:00]} 24. Na5 {[%clk 0:00:01]}  Bd7 {[%clk 0:00:00]} 25. Ra1 {[%clk 0:00:01]}  h5 {[%clk 0:00:00]} 26. Nb3 {[%clk 0:00:01]}  Re8 {[%clk 0:00:00]} 27. axb5 {[%clk 0:00:00]}  axb5 {[%clk 0:00:00]} 28. Ra6 {[%clk 0:00:00]}  h4 {[%clk 0:00:00]} 29. Na5 {[%clk 0:00:00]}  Bh6 {[%clk 0:00:00]} 30. Qd2 {[%clk 0:00:00]}  Nh5 {[%clk 0:00:00]} 31. Rxf7 {[%clk 0:00:00]}  Qxf7 {[%clk 0:00:00]} 32. Nxc6 {[%clk 0:00:00]}  g3 {[%clk 0:00:00]} 33. hxg3 {[%clk 0:00:00]}  hxg3 {[%clk 0:00:00]} 34. Nd1 {[%clk 0:00:00]}  Nh4 {[%clk 0:00:00]} 35. Ne5 {[%clk 0:00:00]}  Rxe5 {[%clk 0:00:00]} 36. Bxe5 {[%clk 0:00:00]}  Bg5 {[%clk 0:00:00]} 37. Ra8+ {[%clk 0:00:00]}  Be8 {[%clk 0:00:00]} 38. Bxb5 {[%clk 0:00:00]} 1-0


[Site "https://www.chess.com"]

[Event "Titled Tuesday Blitz April 11 Late 2023"]
[White "Marcziter, Dmitrii"]
[Black "Aldokhin, Ivan"]
[WhiteFideId "13900765"]
[BlackFideId "24115720"]
[WhiteElo "2162"]
[BlackElo "2322"]
[Result "0-1"]
[Round "01"]
[TimeControl "180+2"]
[Date "2023.04.11"]
[WhiteClock "0:00:08"]
[BlackClock "0:00:07"]

1. e4 {[%clk 0:03:00]}  c5 {[%clk 0:02:59]} 2. Nc3 {[%clk 0:02:58]}  e6 {[%clk 0:03:00]} 3. g3 {[%clk 0:02:56]}  b6 {[%clk 0:02:54]} 4. Bg2 {[%clk 0:02:54]}  Nc6 {[%clk 0:02:51]} 5. d3 {[%clk 0:02:53]}  g6 {[%clk 0:02:51]} 6. f4 {[%clk 0:02:50]}  Bg7 {[%clk 0:02:51]} 7. Nf3 {[%clk 0:02:50]}  Nge7 {[%clk 0:02:51]} 8. O-O {[%clk 0:02:49]}  O-O {[%clk 0:02:48]} 9. g4 {[%clk 0:02:48]}  d5 {[%clk 0:02:36]} 10. e5 {[%clk 0:02:41]}  a5 {[%clk 0:02:21]} 11. Ne2 {[%clk 0:02:31]}  Ba6 {[%clk 0:02:18]} 12. Ng3 {[%clk 0:02:30]}  c4 {[%clk 0:02:16]} 13. d4 {[%clk 0:02:27]}  c3 {[%clk 0:02:16]} 14. Rf2 {[%clk 0:02:27]}  cxb2 {[%clk 0:02:17]} 15. Bxb2 {[%clk 0:02:27]}  f6 {[%clk 0:01:58]} 16. Ba3 {[%clk 0:02:19]}  fxe5 {[%clk 0:01:55]} 17. fxe5 {[%clk 0:02:06]}  h6 {[%clk 0:01:46]} 18. Bf1 {[%clk 0:02:03]}  Bxf1 {[%clk 0:01:40]} 19. Qxf1 {[%clk 0:02:02]}  Rf7 {[%clk 0:01:32]} 20. Qe2 {[%clk 0:01:59]}  g5 {[%clk 0:01:27]} 21. Raf1 {[%clk 0:01:58]}  Ng6 {[%clk 0:01:27]} 22. Qd2 {[%clk 0:01:41]}  Nf4 {[%clk 0:01:24]} 23. Kh1 {[%clk 0:01:39]}  Bf8 {[%clk 0:01:08]} 24. Bxf8 {[%clk 0:01:33]}  Qxf8 {[%clk 0:01:07]} 25. Ne2 {[%clk 0:01:32]}  Qg7 {[%clk 0:00:55]} 26. c3 {[%clk 0:01:26]}  Nh3 {[%clk 0:00:46]} 27. Rg2 {[%clk 0:01:23]}  Raf8 {[%clk 0:00:46]} 28. Rg3 {[%clk 0:01:19]}  Nf4 {[%clk 0:00:47]} 29. Nxf4 {[%clk 0:01:18]}  Rxf4 {[%clk 0:00:47]} 30. Qe2 {[%clk 0:01:11]}  Ne7 {[%clk 0:00:27]} 31. Nd2 {[%clk 0:01:10]}  Rxf1+ {[%clk 0:00:26]} 32. Nxf1 {[%clk 0:01:09]}  Qf7 {[%clk 0:00:23]} 33. Nd2 {[%clk 0:01:01]}  Qf2 {[%clk 0:00:17]} 34. Qxf2 {[%clk 0:00:56]}  Rxf2 {[%clk 0:00:18]} 35. Rd3 {[%clk 0:00:56]}  Ng6 {[%clk 0:00:17]} 36. Kg1 {[%clk 0:00:44]}  Re2 {[%clk 0:00:17]} 37. Nf1 {[%clk 0:00:28]}  Rxa2 {[%clk 0:00:14]} 38. Ng3 {[%clk 0:00:26]}  Nf4 {[%clk 0:00:14]} 39. Rd1 {[%clk 0:00:26]}  a4 {[%clk 0:00:07]} 40. Rb1 {[%clk 0:00:25]}  a3 {[%clk 0:00:08]} 41. Rxb6 {[%clk 0:00:25]}  Rb2 {[%clk 0:00:09]} 42. Ra6 {[%clk 0:00:20]}  a2 {[%clk 0:00:09]} 43. Nf1 {[%clk 0:00:20]}  Ne2+ {[%clk 0:00:08]} 44. Kf2 {[%clk 0:00:19]}  Nxc3+ {[%clk 0:00:08]} 45. Ke3 {[%clk 0:00:17]}  Rb1 {[%clk 0:00:08]} 46. Ra8+ {[%clk 0:00:12]}  Kg7 {[%clk 0:00:08]} 47. Ng3 {[%clk 0:00:11]}  a1=Q {[%clk 0:00:06]} 48. Nh5+ {[%clk 0:00:11]}  Kf7 {[%clk 0:00:05]} 49. Rxa1 {[%clk 0:00:09]}  Rxa1 {[%clk 0:00:05]} 50. Nf6 {[%clk 0:00:10]}  Ra3 {[%clk 0:00:04]} 51. Kd2 {[%clk 0:00:06]}  Ne4+ {[%clk 0:00:04]} 52. Nxe4 {[%clk 0:00:06]}  dxe4 {[%clk 0:00:05]} 53. Ke2 {[%clk 0:00:07]}  Rd3 {[%clk 0:00:05]} 54. d5 {[%clk 0:00:07]}  Rxd5 {[%clk 0:00:05]} 55. h3 {[%clk 0:00:08]}  Rxe5 {[%clk 0:00:05]} 56. Ke3 {[%clk 0:00:06]}  Kf6 {[%clk 0:00:05]} 57. Kd4 {[%clk 0:00:06]}  e3 {[%clk 0:00:06]} 58. Kd3 {[%clk 0:00:07]}  e2 {[%clk 0:00:07]} 59. Kd4 {[%clk 0:00:08]}  e1=Q {[%clk 0:00:08]} 60. Kd3 {[%clk 0:00:08]}  Qe4+ {[%clk 0:00:07]} 0-1


[Site "https://www.chess.com"]

[Event "Titled Tuesday Blitz April 11 Late 2023"]
[White "Domingo Nunez, Ruben"]
[Black "Bach, Matthias"]
[WhiteFideId "22245570"]
[BlackFideId "4603168"]
[WhiteElo "2404"]
[BlackElo "2130"]
[Result "1-0"]
[Round "01"]
[TimeControl "180+2"]
[Date "2023.04.11"]
[WhiteClock "0:00:00"]
[BlackClock "0:00:00"]

1. b3 {[%clk 0:00:01]}  e5 {[%clk 0:00:01]} 2. Bb2 {[%clk 0:00:01]}  f6 {[%clk 0:00:01]} 3. e3 {[%clk 0:00:01]}  d6 {[%clk 0:00:01]} 4. d4 {[%clk 0:00:01]}  Nh6 {[%clk 0:00:01]} 5. c4 {[%clk 0:00:01]}  Nf7 {[%clk 0:00:01]} 6. Nc3 {[%clk 0:00:01]}  Be7 {[%clk 0:00:01]} 7. Bd3 {[%clk 0:00:01]}  O-O {[%clk 0:00:01]} 8. Qc2 {[%clk 0:00:01]}  f5 {[%clk 0:00:01]} 9. Bxf5 {[%clk 0:00:01]}  Bxf5 {[%clk 0:00:01]} 10. Qxf5 {[%clk 0:00:01]}  exd4 {[%clk 0:00:01]} 11. exd4 {[%clk 0:00:01]}  Bg5 {[%clk 0:00:01]} 12. Nge2 {[%clk 0:00:01]}  Nh6 {[%clk 0:00:01]} 13. Qd5+ {[%clk 0:00:01]}  Kh8 {[%clk 0:00:01]} 14. Qxb7 {[%clk 0:00:01]}  Nd7 {[%clk 0:00:01]} 15. O-O {[%clk 0:00:01]}  Ng4 {[%clk 0:00:01]} 16. Qe4 {[%clk 0:00:01]}  Ndf6 {[%clk 0:00:01]} 17. Qd3 {[%clk 0:00:01]}  Nh5 {[%clk 0:00:01]} 18. h3 {[%clk 0:00:01]}  Ngf6 {[%clk 0:00:01]} 19. Bc1 {[%clk 0:00:01]}  Nd7 {[%clk 0:00:01]} 20. Bxg5 {[%clk 0:00:01]}  Qxg5 {[%clk 0:00:01]} 21. Rae1 {[%clk 0:00:01]}  Rf7 {[%clk 0:00:00]} 22. Qe3 {[%clk 0:00:00]}  Qg6 {[%clk 0:00:00]} 23. Ng3 {[%clk 0:00:00]}  Nf4 {[%clk 0:00:00]} 24. Qe4 {[%clk 0:00:00]}  Qg5 {[%clk 0:00:00]} 25. Qxa8+ {[%clk 0:00:00]} 1-0


[Site "https://www.chess.com"]

[Event "Titled Tuesday Blitz April 11 Late 2023"]
[White "Risteski, Emil"]
[Black "Vifleemskaia, Svetlana"]
[WhiteFideId "15005267"]
[BlackFideId "4129490"]
[WhiteElo "2251"]
[BlackElo "1930"]
[Result "1/2-1/2"]
[Round "01"]
[TimeControl "180+2"]
[Date "2023.04.11"]
[WhiteClock "0:00:35"]
[BlackClock "0:00:22"]

1. c4 {[%clk 0:03:00]}  c5 {[%clk 0:02:58]} 2. Nc3 {[%clk 0:03:00]}  Nf6 {[%clk 0:02:58]} 3. g3 {[%clk 0:03:01]}  d5 {[%clk 0:02:58]} 4. cxd5 {[%clk 0:03:02]}  Nxd5 {[%clk 0:02:59]} 5. Bg2 {[%clk 0:03:02]}  Nc7 {[%clk 0:02:59]} 6. Nf3 {[%clk 0:03:03]}  Nc6 {[%clk 0:02:59]} 7. O-O {[%clk 0:03:03]}  e5 {[%clk 0:02:59]} 8. d3 {[%clk 0:03:04]}  Be7 {[%clk 0:02:59]} 9. Nd2 {[%clk 0:03:04]}  Bd7 {[%clk 0:02:58]} 10. Nc4 {[%clk 0:03:04]}  f6 {[%clk 0:02:57]} 11. f4 {[%clk 0:03:04]}  O-O {[%clk 0:02:54]} 12. fxe5 {[%clk 0:02:56]}  fxe5 {[%clk 0:02:51]} 13. Be3 {[%clk 0:02:48]}  Rb8 {[%clk 0:02:46]} 14. Ne4 {[%clk 0:02:47]}  b6 {[%clk 0:02:43]} 15. Qd2 {[%clk 0:02:39]}  Nd5 {[%clk 0:02:28]} 16. Bg5 {[%clk 0:02:31]}  Nf6 {[%clk 0:02:20]} 17. Nxf6+ {[%clk 0:02:14]}  Bxf6 {[%clk 0:02:19]} 18. Bxf6 {[%clk 0:02:14]}  Rxf6 {[%clk 0:02:19]} 19. Rxf6 {[%clk 0:02:12]}  Qxf6 {[%clk 0:02:18]} 20. Rf1 {[%clk 0:02:11]}  Qe7 {[%clk 0:02:12]} 21. a3 {[%clk 0:02:04]}  Re8 {[%clk 0:01:58]} 22. Bd5+ {[%clk 0:02:03]}  Kh8 {[%clk 0:01:52]} 23. Rf7 {[%clk 0:02:01]}  Qd8 {[%clk 0:01:46]} 24. e4 {[%clk 0:01:51]}  Nd4 {[%clk 0:01:38]} 25. Qf2 {[%clk 0:01:48]}  h6 {[%clk 0:01:36]} 26. Nd6 {[%clk 0:01:45]}  Rg8 {[%clk 0:01:10]} 27. Rf5 {[%clk 0:01:24]}  Be6 {[%clk 0:00:51]} 28. Bxe6 {[%clk 0:01:04]}  Qxd6 {[%clk 0:00:47]} 29. Bxg8 {[%clk 0:01:01]}  Nxf5 {[%clk 0:00:43]} 30. Qxf5 {[%clk 0:01:00]}  Kxg8 {[%clk 0:00:43]} 31. Qc8+ {[%clk 0:01:00]}  Kh7 {[%clk 0:00:41]} 32. Qf5+ {[%clk 0:01:00]}  Kg8 {[%clk 0:00:41]} 33. Kg2 {[%clk 0:00:55]}  Qd4 {[%clk 0:00:35]} 34. Qc8+ {[%clk 0:00:49]}  Kh7 {[%clk 0:00:35]} 35. Qf5+ {[%clk 0:00:50]}  Kg8 {[%clk 0:00:35]} 36. Qe6+ {[%clk 0:00:50]}  Kh7 {[%clk 0:00:34]} 37. Qb3 {[%clk 0:00:43]}  Qe3 {[%clk 0:00:29]} 38. Qc2 {[%clk 0:00:43]}  Kg6 {[%clk 0:00:25]} 39. b3 {[%clk 0:00:39]}  Kf6 {[%clk 0:00:25]} 40. a4 {[%clk 0:00:27]}  a6 {[%clk 0:00:20]} 41. h4 {[%clk 0:00:21]}  b5 {[%clk 0:00:20]} 42. axb5 {[%clk 0:00:21]}  axb5 {[%clk 0:00:21]} 43. Qf2+ {[%clk 0:00:19]}  Qxf2+ {[%clk 0:00:20]} 44. Kxf2 {[%clk 0:00:20]}  h5 {[%clk 0:00:19]} 45. Kf3 {[%clk 0:00:20]}  g6 {[%clk 0:00:18]} 46. Ke3 {[%clk 0:00:20]}  Ke6 {[%clk 0:00:18]} 47. Kd2 {[%clk 0:00:21]}  Kd6 {[%clk 0:00:19]} 48. Kc3 {[%clk 0:00:22]}  Kc6 {[%clk 0:00:19]} 49. Kc2 {[%clk 0:00:22]}  b4 {[%clk 0:00:16]} 50. Kd1 {[%clk 0:00:22]}  Kd6 {[%clk 0:00:16]} 51. Kd2 {[%clk 0:00:23]}  Ke6 {[%clk 0:00:16]} 52. Ke2 {[%clk 0:00:24]}  Kf6 {[%clk 0:00:17]} 53. Kf3 {[%clk 0:00:24]}  Ke6 {[%clk 0:00:16]} 54. g4 {[%clk 0:00:25]}  Kf6 {[%clk 0:00:16]} 55. g5+ {[%clk 0:00:25]}  Ke6 {[%clk 0:00:17]} 56. Ke3 {[%clk 0:00:26]}  Kd6 {[%clk 0:00:17]} 57. Kd2 {[%clk 0:00:27]}  Kc6 {[%clk 0:00:17]} 58. Kd1 {[%clk 0:00:28]}  Kb5 {[%clk 0:00:18]} 59. Kc1 {[%clk 0:00:29]}  Kc6 {[%clk 0:00:18]} 60. Kc2 {[%clk 0:00:29]}  Kb5 {[%clk 0:00:19]} 61. Kb2 {[%clk 0:00:30]}  Kc6 {[%clk 0:00:19]} 62. Kc1 {[%clk 0:00:31]}  Kb5 {[%clk 0:00:20]} 63. Kd2 {[%clk 0:00:32]}  Kc6 {[%clk 0:00:20]} 64. Ke3 {[%clk 0:00:33]}  Kb5 {[%clk 0:00:21]} 65. Kf3 {[%clk 0:00:34]}  Kc6 {[%clk 0:00:21]} 66. Ke2 {[%clk 0:00:34]}  Kb5 {[%clk 0:00:22]} 67. Kd2 {[%clk 0:00:35]}  Kc6 {[%clk 0:00:22]} 1/2-1/2


[Site "https://www.chess.com"]

[Event "Titled Tuesday Blitz April 11 Late 2023"]
[White "Skaric, Djuro"]
[Black "Sai Krishna G V"]
[WhiteFideId "934569"]
[BlackFideId "5028280"]
[WhiteElo "2282"]
[BlackElo "2359"]
[Result "0-1"]
[Round "01"]
[TimeControl "180+2"]
[Date "2023.04.11"]
[WhiteClock "0:00:00"]
[BlackClock "0:00:01"]

1. g3 {[%clk 0:00:01]}  d5 {[%clk 0:00:01]} 2. Bg2 {[%clk 0:00:01]}  Nc6 {[%clk 0:00:01]} 3. d3 {[%clk 0:00:01]}  e5 {[%clk 0:00:01]} 4. Nf3 {[%clk 0:00:01]}  Nge7 {[%clk 0:00:01]} 5. O-O {[%clk 0:00:01]}  g6 {[%clk 0:00:01]} 6. Nc3 {[%clk 0:00:01]}  Bg7 {[%clk 0:00:01]} 7. e4 {[%clk 0:00:01]}  d4 {[%clk 0:00:01]} 8. Ne2 {[%clk 0:00:01]}  O-O {[%clk 0:00:01]} 9. Ne1 {[%clk 0:00:01]}  f5 {[%clk 0:00:01]} 10. f4 {[%clk 0:00:01]}  h6 {[%clk 0:00:01]} 11. Nf3 {[%clk 0:00:01]}  Be6 {[%clk 0:00:01]} 12. fxe5 {[%clk 0:00:01]}  fxe4 {[%clk 0:00:01]} 13. dxe4 {[%clk 0:00:01]}  Bc4 {[%clk 0:00:01]} 14. Ne1 {[%clk 0:00:01]}  Nxe5 {[%clk 0:00:01]} 15. Nd3 {[%clk 0:00:01]}  Ng4 {[%clk 0:00:01]} 16. b3 {[%clk 0:00:01]}  Ba6 {[%clk 0:00:01]} 17. Nef4 {[%clk 0:00:01]}  Qd6 {[%clk 0:00:01]} 18. Qe2 {[%clk 0:00:01]}  Ne3 {[%clk 0:00:01]} 19. Bxe3 {[%clk 0:00:01]}  dxe3 {[%clk 0:00:01]} 20. Rad1 {[%clk 0:00:01]}  Rad8 {[%clk 0:00:01]} 21. Kh1 {[%clk 0:00:01]}  g5 {[%clk 0:00:01]} 22. Nh5 {[%clk 0:00:01]}  Bd4 {[%clk 0:00:01]} 23. c4 {[%clk 0:00:01]}  c5 {[%clk 0:00:01]} 24. Qg4 {[%clk 0:00:01]}  b6 {[%clk 0:00:01]} 25. Qe2 {[%clk 0:00:01]}  Bc8 {[%clk 0:00:01]} 26. Bf3 {[%clk 0:00:01]}  Qg6 {[%clk 0:00:01]} 27. Bg4 {[%clk 0:00:01]}  Qxe4+ {[%clk 0:00:01]} 28. Bf3 {[%clk 0:00:00]}  Rxf3 {[%clk 0:00:01]} 29. Qxf3 {[%clk 0:00:00]}  Qxf3+ {[%clk 0:00:01]} 30. Rxf3 {[%clk 0:00:00]}  Bb7 {[%clk 0:00:01]} 31. Ne1 {[%clk 0:00:00]}  g4 {[%clk 0:00:01]} 32. Nf6+ {[%clk 0:00:00]}  Bxf6 {[%clk 0:00:01]} 33. Rxd8+ {[%clk 0:00:00]}  Kf7 {[%clk 0:00:01]} 34. Kg2 {[%clk 0:00:00]}  gxf3+ {[%clk 0:00:01]} 35. Nxf3 {[%clk 0:00:00]}  e2 {[%clk 0:00:01]} 36. Kf2 {[%clk 0:00:00]}  Bxf3 {[%clk 0:00:01]} 37. Rd7 {[%clk 0:00:00]}  Bd4+ {[%clk 0:00:01]} 0-1


[Site "https://www.chess.com"]